{"text_format":"3","workbook":"xlsx","n_sheets":2,"sheets":["PLAYING FORMAT","Sheet3"],"read":"whole","date_system":"1900"}

{"sheet":"PLAYING FORMAT","index":0,"n_rows":60,"n_cols":20,"rows_kept":60,"merged":[[10,1,10,8],[14,0,16,0],[19,0,21,0],[22,0,24,0],[22,1,24,8],[26,0,28,0],[31,0,33,0],[36,1,36,8],[39,0,41,0],[44,0,46,0],[47,0,49,0],[47,1,49,8],[51,0,53,0],[56,1,56,6],[59,1,59,6]]}
["APC 2017 - BANGKOK- PLAYING SCHEDULE"]
[]
[null,1,2,3,4,5,6,7,8]
[null,"HO CHI MINH","SHANGHAI","BANGKOK","SINGAPORE","JAKARTA","PHNOM PENH","MANILA","SEOUL"]
[]
["TEAM 1","Ho Chi Minh 1","Shanghai 1","Bangkok 1","Singapore 1","Jakarta 1","Phnom Penh 1","Manila 1","Seoul 1",{"$nulls":7},{"$f":"SUM(E6:P6)","v":0}]
[]
["TEAM 2","Ho Chi Minh 2","Shanghai 2","Bangkok 2","Singapore 2","Jakarta 2","Phnom Penh 2","Manila 2","Seoul 2"]
[]
[]
["TIME","DAY 1"]
[{"$nulls":11},"TABLE 1","TABLE 2","TABLE 3","TABLE 4","TABLE 5","TABLE 6","TABLE 7","TABLE 8"]
[null,"TV TABLE"]
[null,"TABLE 1","TABLE 2","TABLE 3","TABLE 4","TABLE 5","TABLE 6","TABLE 7","TABLE 8",null,"Ho Chi Minh 1",1,null,1,1,2,1,null,1,{"$f":"SUM(L14:S14)","v":7}]
["11.00 to 13.30","Ho Chi Minh 1","Bangkok 1","Phnom Penh 1","Shanghai 1","Singapore 2","Shanghai 2","Ho Chi Minh 2","Bangkok 2",null,"Shanghai 1",1,1,null,2,1,null,1,1,{"$f":"SUM(L15:S15)","v":7}]
[null,"vs","vs","vs","vs","vs","vs","vs","vs",null,"Bangkok 1",1,2,null,1," ",1,1,1,7]
[null,"Manila 1","Singapore 1","Seoul 1","Jakarta 1","Phnom Penh 2","Seoul 2","Jakarta 2","Manila 2",null,"Singapore 1",null,1,null,2,null,2,1,1,7]
[{"$nulls":10},"Manila 1",1,1,1,1,2," ",1,null,7]
[null,"TABLE 1","TABLE 2","TABLE 3","TABLE 4","TABLE 5","TABLE 6","TABLE 7","TABLE 8",null,"Phnom Penh 1",null,2,1,1,1," ",null,2,7]
["13.40 to 16.10","Ho Chi Minh 2","Bangkok 2","Shanghai 2","Singapore 2","Jakarta 1","Singapore 1","Shanghai 1","Ho Chi Minh 1",null,"Jakarta 1",1,1,1,1,1,1,1,null,7]
[null,"vs","vs","vs","vs","vs","vs","vs","vs",null,"Seoul 1",1,null,2,1,1,1,1,null,7]
[null,"Seoul 2","Phnom Penh 2","Manila 2","Jakarta 2","Manila 1","Seoul 1","Bangkok 1","Phnom Penh 1"]
["16.10 to 16.50","BREAK AND DINNER"]
[{"$nulls":10},"Ho Chi Minh 2",1,null,1,1,1,2,1,null,{"$f":"SUM(L24:S24)","v":7}]
[{"$nulls":10},"Shanghai 2",1,null,2,null,1,1,1,1,7]
[null,"TABLE 1","TABLE 2","TABLE 3","TABLE 4","TABLE 5","TABLE 6","TABLE 7","TABLE 8",null,"Bangkok 2",1,1,1,null," ",2,1,1,7]
["16.50 to 19.20","Bangkok 1","Shanghai 1","Manila 1","Ho Chi Minh 1","Ho Chi Minh 2","Bangkok 2","Singapore 2","Jakarta 2",null,"Singapore 2",1,1,1,1,1,null,2,null,7]
[null,"vs","vs","vs","vs","vs","vs","vs","vs",null,"Manila 2",1,1,1,null,null,1,1,2,{"$f":"SUM(L28:S28)","v":7}]
[null,"Jakarta 1","Phnom Penh 1","Seoul 1","Singapore 1","Shanghai 2","Seoul 2","Manila 2","Phnom Penh 2",null,"Phnom Penh 2",1,1,1,1,1,null,null,2,{"$f":"SUM(L29:S29)","v":7}]
[{"$nulls":10},"Jakarta 2",1,null,null,1,1," ",2,2,{"$f":"SUM(L30:S30)","v":7}]
[null,"TABLE 1","TABLE 2","TABLE 3","TABLE 4","TABLE 5","TABLE 6","TABLE 7","TABLE 8",null,"Seoul 2",1,2,1,null,1,2,null,null,7]
["19.30 to 22.00","Jakarta 2","Singapore 2","Shanghai 2","Ho Chi Minh 2","Phnom Penh 1","Ho Chi Minh 1","Jakarta 1","Shanghai 1"]
[null,"vs","vs","vs","vs","vs","vs","vs","vs",null,null,{"$f":"SUM(L14:L31)","v":14},{"$f":"SUM(M14:M31)","v":14},14,14,14,14,14,14]
[null,"Manila 2","Seoul 2","Bangkok 2","Phnom Penh 2","Manila 1","Bangkok 1","Seoul 1","Singapore 1"]
[]
[]
["TIME","DAY 2"]
[]
[null,"TABLE 1","TABLE 2","TABLE 3","TABLE 4","TABLE 5","TABLE 6","TABLE 7","TABLE 8"]
["11.00 to 13.30","Shanghai 1","Bangkok 1","Ho Chi Minh 1","Singapore 1","Jakarta 2","Ho Chi Minh 2","Shanghai 2","Phnom Penh 2"]
[null,"vs","vs","vs","vs","vs","vs","vs","vs"]
[null,"Seoul 1","Manila 1","Jakarta 1","Phnom Penh 1","Seoul 2","Bangkok 2","Singapore 2","Manila 2"]
[]
[null,"TABLE 1","TABLE 2","TABLE 3","TABLE 4","TABLE 5","TABLE 6","TABLE 7","TABLE 8"]
["13.40 to 16.10","Shanghai 2","Manila 2","Ho Chi Minh 2","Shanghai 1","Ho Chi Minh 1","Singapore 1","Bangkok 2","Bangkok 1"]
[null,"vs","vs","vs","vs","vs","vs","vs","vs"]
[null,"Phnom Penh 2","Seoul 2","Singapore 2","Manila 1","Seoul 1","Jakarta 1","Jakarta 2","Phnom Penh 1"]
["16.10 to 16.50","BREAK AND DINNER"]
[]
[]
[null,"TABLE 1","TABLE 2","TABLE 3","TABLE 4","TABLE 5","TABLE 6","TABLE 7","TABLE 8"]
["16.50 to 19.20","Bangkok 2","Jakarta 1","Phnom Penh 2","Bangkok 1","Ho Chi Minh 1","Ho Chi Minh 2","Singapore 1","Shanghai 2"]
[null,"vs","vs","vs","vs","vs","vs","vs","vs"]
[null,"Singapore 2","Phnom Penh 1","Seoul 2","Seoul 1","Shanghai 1","Manila 2","Manila 1","Jakarta 2"]
[]
[]
["19.20 to 20.00","SCORE VERIFICATION"]
[]
[]
["20.00 to 20.30","ACKNOWLEDGEMENTS & AWARDS PRESENTATION"]

{"sheet":"Sheet3","index":1,"n_rows":0,"n_cols":0,"rows_kept":0}